[Event "GER-chT Youth Countries 2018"]
[Site "Wurzburg"]
[Date "2018.10.05"]
[Round "4"]
[White "Farokhi, Keyvan"]
[Black "Browning, Rebecca"]
[Result "1/2-1/2"]
[ECO "A37"]
[WhiteElo "1855"]
[BlackElo "1873"]
[Annotator "NA"]
[PlyCount "89"]
[EventDate "2018.10.03"]
[EventType "team-tourn"]
[EventCountry "GER"]
[SourceTitle "playchess.com"]
[Source "ChessBase"]
[SourceQuality "1"]
[TimeControl "40/5400+30:1800+30"]

1. c4 {[%emt 0:00:00]} c5 {[%emt 0:00:00]} 2. g3 {[%emt 0:00:00]} g6 {[%emt 0:00:00]} 3. Bg2 {[%emt 0:00:00]} Bg7 {[%emt 0:00:00]} 4. Nc3 {[%emt 0:00:13]} Nc6 {[%emt 0:00:00]} 5. Nf3 {[%emt 0:00:16]} b6 {[%emt 0:01:43]} 6. O-O {[%emt 0:05:21] LiveBook: 106 Games} e6 {[%emt 0:01:52] [#]} (6... Ba6 $11 {keeps the balance.}) 7. d4 $16 {[%emt 0:05:09]} Nge7 {[%emt 0:06:00]} 8. dxc5 {[%emt 0:07:22]} bxc5 {[%emt 0:05:19]} 9. Ne4 {[%emt 0:00:27]} O-O {[%emt 0:01:11]} 10. Nxc5 {[%emt 0:05:28]} Rb8 {[%emt 0:00:19]} 11. Nd3 {[%emt 0:06:20]} Na5 {[%emt 0:02:56]} 12. Qc2 {[%emt 0:01:45]} Ba6 {[%emt 0:01:57]} 13. c5 {[%emt 0:06:04]} Nd5 {[%emt 0:08:33]} 14. Nfe1 {[%emt 0:10:36]} Nb4 {[%emt 0:06:06]} 15. Nxb4 {[%emt 0:01:38]} Rxb4 {[%emt 0:00:05]} 16. Nd3 {[%emt 0:05:53]} Bxd3 {[%emt 0:09:53]} 17. exd3 {[%emt 0:02:04]} Qe7 {[%emt 0:01:19]} 18. Rb1 {[%emt 0:03:48]} Rfb8 {[%emt 0:02:46]} 19. b3 {[%emt 0:01:02]} Bd4 {[%emt 0:08:49]} 20. Bd2 {[%emt 0:07:28]} R4b5 {[%emt 0:01:07]} 21. b4 {[%emt 0:00:18]} Nc6 {[%emt 0:01:19]} 22. Qc4 {[%emt 0:00:34]} Qf6 {[%emt 0:10:33]} 23. a4 {[%emt 0:09:58]} R5b7 {[%emt 0:05:01]} 24. Bxc6 {[%emt 0:00:46]} dxc6 {[%emt 0:00:06]} 25. Be3 {[%emt 0:01:19]} Bxe3 {[%emt 0:01:43]} 26. fxe3 {[%emt 0:00:08]} Qe5 {[%emt 0:00:03]} 27. Qf4 {[%emt 0:04:08]} Qc3 {[%emt 0:01:52]} 28. Qd6 {[%emt 0:02:50]} Rc8 {[%emt 0:00:52]} 29. Rfc1 {[%emt 0:01:48]} Qd2 {[%emt 0:00:12]} 30. Qd4 {[%emt 0:00:28]} Rcb8 {[%emt 0:01:56]} 31. b5 {[%emt 0:03:05]} cxb5 {[%emt 0:00:29]} 32. c6 {[%emt 0:00:10]} Rc7 {[%emt 0:00:24]} 33. axb5 {[%emt 0:00:29]} Rxb5 {[%emt 0:03:16]} 34. Rd1 {[%emt 0:04:32]} Rxb1 {[%emt 0:00:53]} 35. Rxb1 {[%emt 0:00:01]} Rc8 {[%emt 0:00:22]} 36. c7 {[%emt 0:00:19]} Qc2 {[%emt 0:01:31]} 37. Qd8+ {[%emt 0:01:01]} Kg7 {[%emt 0:00:08]} 38. Qxc8 {[%emt 0:00:29]} Qxb1+ {[%emt 0:00:04]} 39. Kg2 {[%emt 0:00:24]} Qc2+ {[%emt 0:00:18]} 40. Kh3 {[%emt 0:00:22]} Qxd3 {[%emt 0:00:31]} 41. Qb7 {[%emt 0:06:16]} Qf1+ {[%emt 0:00:23]} 42. Qg2 {[%emt 0:01:00]} Qc1 {[%emt 0:01:51]} 43. Qb7 {[%emt 0:02:48]} Qf1+ {[%emt 0:00:38]} 44. Qg2 {[%emt 0:03:46]} Qc1 {[%emt 0:00:59]} 45. Qb7 {[%emt 0:00:21]} 1/2-1/2

[Event "GER-chT Youth Countries 2018"]
[Site "Wurzburg"]
[Date "2018.10.05"]
[Round "4"]
[White "Evering, Soeren"]
[Black "Koehler, Lukas"]
[Result "1-0"]
[ECO "B42"]
[WhiteElo "1854"]
[BlackElo "1926"]
[Annotator "NA"]
[PlyCount "57"]
[EventDate "2018.10.03"]
[EventType "team-tourn"]
[EventCountry "GER"]
[SourceTitle "playchess.com"]
[Source "ChessBase"]
[SourceQuality "1"]
[TimeControl "40/5400+30:1800+30"]

1. e4 {[%emt 0:00:00]} c5 {[%emt 0:00:00]} 2. Nf3 {[%emt 0:00:00]} e6 {[%emt 0:00:00]} 3. d4 {[%emt 0:00:12]} cxd4 {[%emt 0:00:00]} 4. Nxd4 {[%emt 0:00:16]} a6 {[%emt 0:00:48]} 5. Bd3 {[%emt 0:02:21]} Qc7 {[%emt 0:00:27]} 6. O-O {[%emt 0:01:29]} Nf6 {[%emt 0:00:59]} 7. Nc3 {[%emt 0:03:29]} d6 {[%emt 0:01:35]} 8. Qe2 {[%emt 0:01:27]} Be7 $11 {[%emt 0:01:41] LiveBook: 86 Games} 9. Kh1 {[%emt 0:05:12]} Nbd7 {[%emt 0:03:36]} 10. f4 {[%emt 0:07:24]} b6 {[%emt 0:14:08]} 11. Nf3 {[%emt 0:08:16]} Nc5 {[%emt 0:09:38]} 12. Bd2 {[%emt 0:09:03]} Bb7 {[%emt 0:03:10]} 13. Rae1 {[%emt 0:02:10]} d5 {[%emt 0:07:07]} 14. e5 {[%emt 0:08:16]} Nfe4 {[%emt 0:02:12]} 15. Bxe4 {[%emt 0:03:27]} Nxe4 {[%emt 0:01:00]} 16. Nd4 {[%emt 0:02:03]} Rc8 {[%emt 0:06:34]} 17. Nxe4 {[%emt 0:02:20]} dxe4 {[%emt 0:02:38]} 18. Be3 {[%emt 0:04:59]} O-O {[%emt 0:07:49]} 19. Qg4 {[%emt 0:03:43]} Kh8 {[%emt 0:16:04]} 20. f5 {[%emt 0:11:14]} Qxe5 {[%emt 0:04:33]} 21. fxe6 {[%emt 0:00:46]} Bc5 {[%emt 0:03:23]} 22. Rf5 {[%emt 0:08:29]} Qd6 {[%emt 0:07:24]} 23. Rxf7 {[%emt 0:04:25]} Rxf7 {[%emt 0:04:40]} 24. exf7 {[%emt 0:00:11]} Rf8 {[%emt 0:00:33]} 25. Ne6 {[%emt 0:06:04]} Rxf7 {[%emt 0:00:58]} 26. Bxc5 {[%emt 0:01:32]} bxc5 {[%emt 0:00:11]} 27. Rd1 {[%emt 0:00:31]} Bc8 {[%emt 0:01:45]} 28. Kg1 {[%emt 0:02:18]} Bxe6 {[%emt 0:00:36]} 29. Rxd6 {[%emt 0:00:20]} 1-0

[Event "GER-chT Youth Countries 2018"]
[Site "Wurzburg"]
[Date "2018.10.05"]
[Round "4"]
[White "Astner, Sebastian"]
[Black "Moenster, Madita"]
[Result "1-0"]
[ECO "B53"]
[WhiteElo "1849"]
[BlackElo "1817"]
[Annotator "NA"]
[PlyCount "85"]
[EventDate "2018.10.03"]
[EventType "team-tourn"]
[EventCountry "GER"]
[SourceTitle "playchess.com"]
[Source "ChessBase"]
[SourceQuality "1"]
[TimeControl "40/5400+30:1800+30"]

1. e4 {[%emt 0:00:00]} c5 {[%emt 0:00:00]} 2. Nf3 {[%emt 0:00:00]} d6 {[%emt 0:00:00]} 3. d4 {[%emt 0:00:00]} cxd4 {[%emt 0:00:00]} 4. Qxd4 {[%emt 0:00:00]} Nc6 {[%emt 0:00:15]} 5. Bb5 {[%emt 0:00:00]} Bd7 {[%emt 0:00:13]} 6. Bxc6 {[%emt 0:00:00]} Bxc6 {[%emt 0:00:12]} 7. c4 {[%emt 0:00:04]} f5 {[%emt 0:00:57]} 8. Nbd2 {[%emt 0:08:35]} fxe4 {[%emt 0:02:21]} 9. Nxe4 {[%emt 0:00:26]} e5 $11 {[%emt 0:01:53]} 10. Qd3 {[%emt 0:09:06]} Nf6 {[%emt 0:01:35]} 11. Nxf6+ {[%emt 0:01:01]} Qxf6 {[%emt 0:00:41]} 12. Bg5 {[%emt 0:02:30]} Qe6 {[%emt 0:04:52]} 13. O-O h6 {[%emt 0:12:25]} 14. Nd4 {[%emt 0:23:42]} Qf7 {[%emt 0:06:18]} 15. Nxc6 {[%emt 0:01:50]} hxg5 {[%emt 0:16:34]} 16. Nb4 {[%emt 0:02:21]} O-O-O {[%emt 0:10:23]} 17. Nd5 {[%emt 0:05:13]} Kb8 {[%emt 0:01:06]} 18. Qg3 {[%emt 0:09:19]} Rc8 {[%emt 0:02:31]} 19. b3 {[%emt 0:01:50]} Be7 {[%emt 0:02:32]} 20. Rfe1 {[%emt 0:02:54]} Bf6 {[%emt 0:05:37]} 21. Rad1 {[%emt 0:02:05]} Rcd8 {[%emt 0:03:08]} 22. h3 {[%emt 0:04:57]} Rh4 {[%emt 0:01:46]} 23. c5 {[%emt 0:09:13]} Qf8 {[%emt 0:09:08]} 24. cxd6 {[%emt 0:05:01]} Rxd6 {[%emt 0:01:01]} 25. Qf3 {[%emt 0:01:50]} Rd8 {[%emt 0:05:18]} 26. Qf5 {[%emt 0:01:59]} Qh8 {[%emt 0:06:04]} 27. Rxe5 {[%emt 0:03:26]} g6 {[%emt 0:01:30]} 28. Qxf6 {[%emt 0:03:25]} Qxf6 {[%emt 0:00:05]} 29. Nxf6 {[%emt 0:00:03]} Rxd1+ {[%emt 0:00:05]} 30. Kh2 {[%emt 0:00:07]} Rd2 {[%emt 0:02:28]} 31. Kg3 {[%emt 0:03:09]} Rhd4 {[%emt 0:01:49]} 32. Rxg5 {[%emt 0:00:51]} Rxa2 {[%emt 0:01:01]} 33. Rxg6 {[%emt 0:00:07]} Rd3+ {[%emt 0:00:19]} 34. f3 {[%emt 0:00:53]} Rxb3 {[%emt 0:01:40]} 35. h4 {[%emt 0:00:34]} Re3 {[%emt 0:01:11]} 36. Rg8+ {[%emt 0:00:07]} Kc7 {[%emt 0:00:19]} 37. Nd5+ {[%emt 0:00:00]} Kc6 {[%emt 0:00:37]} 38. Nxe3 {[%emt 0:00:02]} a5 {[%emt 0:00:31]} 39. h5 {[%emt 0:00:14]} Ra1 {[%emt 0:00:30]} 40. h6 {[%emt 0:00:55]} Rh1 {[%emt 0:00:08]} 41. Ng4 {[%emt 0:30:17]} Rh5 {[%emt 0:30:51]} 42. Rg6+ {[%emt 0:01:24]} Kb5 {[%emt 0:00:00]} 43. Nf6 {[%emt 0:00:00]} 1-0

[Event "GER-chT Youth Countries 2018"]
[Site "Wurzburg"]
[Date "2018.10.05"]
[Round "4"]
[White "Muedder, Melanie"]
[Black "Mundt, Alexandra"]
[Result "1-0"]
[ECO "C42"]
[WhiteElo "1826"]
[BlackElo "1679"]
[Annotator "NA"]
[PlyCount "81"]
[EventDate "2018.10.03"]
[EventType "team-tourn"]
[EventCountry "GER"]
[SourceTitle "playchess.com"]
[Source "ChessBase"]
[SourceQuality "1"]
[TimeControl "40/5400+30:1800+30"]

1. e4 {[%emt 0:00:00]} e5 {[%emt 0:00:00]} 2. Nf3 {[%emt 0:00:00]} Nf6 {[%emt 0:00:00]} 3. Nxe5 {[%emt 0:00:00]} d6 {[%emt 0:00:00]} 4. Nf3 {[%emt 0:00:00]} Nxe4 {[%emt 0:00:00]} 5. Nc3 {[%emt 0:00:10]} Nxc3 {[%emt 0:00:19]} 6. dxc3 {[%emt 0:00:11]} Nc6 {[%emt 0:00:24]} 7. Be3 {[%emt 0:00:24]} Bg4 {[%emt 0:00:29]} 8. h3 {[%emt 0:00:24]} Bh5 {[%emt 0:01:24]} ({Better is} 8... Bd7 $14) 9. Qd5 $16 {[%emt 0:10:53]} Bxf3 {[%emt 0:12:42]} 10. Qxf3 {[%emt 0:05:07]} Be7 {[%emt 0:03:53]} 11. Bb5 {[%emt 0:06:38]} Qd7 {[%emt 0:08:54]} 12. O-O {[%emt 0:16:55]} O-O {[%emt 0:04:26]} 13. c4 {[%emt 0:09:31]} Bf6 {[%emt 0:06:42]} 14. c3 {[%emt 0:05:41]} a6 {[%emt 0:02:14]} 15. Ba4 {[%emt 0:04:04]} Rad8 {[%emt 0:01:13]} 16. Bc2 {[%emt 0:04:41]} Qe6 {[%emt 0:10:31]} 17. c5 {[%emt 0:03:04]} d5 {[%emt 0:06:42]} 18. Bf5 {[%emt 0:06:09]} Qe7 {[%emt 0:00:49]} 19. Rfe1 {[%emt 0:02:34]} Rfe8 {[%emt 0:03:57]} 20. Rad1 {[%emt 0:04:16]} d4 {[%emt 0:10:22]} 21. Bd2 {[%emt 0:03:38]} Qxc5 {[%emt 0:00:43]} 22. b4 {[%emt 0:03:31]} Qc4 {[%emt 0:02:40]} 23. Bd3 {[%emt 0:02:17]} Qxa2 {[%emt 0:04:12]} 24. Qf5 {[%emt 0:02:02]} Rxe1+ {[%emt 0:05:25]} 25. Rxe1 {[%emt 0:00:46]} g6 {[%emt 0:02:44]} 26. Qf4 {[%emt 0:05:58]} dxc3 {[%emt 0:04:38]} 27. Bc1 {[%emt 0:01:16]} Kg7 {[%emt 0:05:30]} 28. Bc4 {[%emt 0:01:15]} Qa4 {[%emt 0:01:30]} 29. Qxc7 {[%emt 0:00:40]} Rf8 {[%emt 0:01:28]} 30. Bxf7 {[%emt 0:01:35]} Rxf7 {[%emt 0:00:29]} 31. Bh6+ {[%emt 0:00:09]} Kxh6 32. Qxf7 {[%emt 0:00:10]} Bg5 {[%emt 0:00:49]} 33. Qf8+ {[%emt 0:00:50]} Kh5 {[%emt 0:00:03]} 34. g4+ {[%emt 0:00:29]} Kh4 {[%emt 0:00:13]} 35. Qf3 {[%emt 0:00:19]} Bd8 {[%emt 0:01:24]} 36. Qg3+ {[%emt 0:01:12]} Kg5 37. h4+ {[%emt 0:00:30]} Kh6 {[%emt 0:00:42]} 38. g5+ {[%emt 0:00:25]} Kh5 {[%emt 0:00:58]} 39. Qf3+ {[%emt 0:01:06]} Kxh4 {[%emt 0:00:05]} 40. Qg3+ {[%emt 0:00:30]} Kh5 {[%emt 0:00:10]} 41. Kg2 {[%emt 0:03:24]} 1-0

[Event "GER-chT Youth Countries 2018"]
[Site "Wurzburg"]
[Date "2018.10.05"]
[Round "4"]
[White "Werner, Denis"]
[Black "Amato, Cristiano"]
[Result "1/2-1/2"]
[ECO "B22"]
[WhiteElo "1817"]
[BlackElo "1661"]
[Annotator "NA"]
[PlyCount "123"]
[EventDate "2018.10.03"]
[EventType "team-tourn"]
[EventCountry "GER"]
[SourceTitle "playchess.com"]
[Source "ChessBase"]
[SourceQuality "1"]
[TimeControl "40/5400+30:1800+30"]

1. e4 {[%emt 0:00:06]} c5 {[%emt 0:00:00]} 2. c3 {[%emt 0:01:00]} Nf6 {[%emt 0:00:00]} 3. e5 {[%emt 0:01:14]} Nd5 {[%emt 0:00:13]} 4. d4 {[%emt 0:01:01]} cxd4 {[%emt 0:00:20]} 5. Qxd4 {[%emt 0:01:30]} e6 {[%emt 0:00:30]} 6. Nf3 {[%emt 0:00:52]} Nc6 {[%emt 0:00:16]} 7. Qe4 {[%emt 0:01:14]} d6 {[%emt 0:00:30]} 8. Nbd2 {[%emt 0:01:26]} dxe5 {[%emt 0:01:49]} 9. Nxe5 {[%emt 0:01:48]} Nxe5 {[%emt 0:00:32]} 10. Qxe5 {[%emt 0:00:51]} Qd6 {[%emt 0:01:05]} 11. Bb5+ {[%emt 0:01:35]} Bd7 $11 {[%emt 0:01:28] LiveBook: 24 Games} 12. Bxd7+ {[%emt 0:00:58]} Kxd7 {[%emt 0:01:28]} 13. Nc4 {[%emt 0:03:17]} Qc5 {[%emt 0:02:56]} 14. Qe2 {[%emt 0:02:33]} f6 {[%emt 0:02:50]} 15. O-O {[%emt 0:02:51]} Rc8 {[%emt 0:01:13]} 16. Ne3 {[%emt 0:01:49]} Bd6 {[%emt 0:03:30]} 17. Rd1 {[%emt 0:02:54]} Nf4 {[%emt 0:07:59]} 18. Qf3 {[%emt 0:03:40]} Ke7 {[%emt 0:00:35]} 19. Nc2 {[%emt 0:03:52]} Nd5 {[%emt 0:06:22]} 20. Ne3 {[%emt 0:04:22]} Nf4 {[%emt 0:04:14]} 21. Qxb7+ {[%emt 0:02:20]} Rc7 {[%emt 0:00:18]} 22. Qe4 {[%emt 0:00:49]} Kf7 {[%emt 0:08:40]} 23. Nc2 {[%emt 0:04:59]} Nd5 {[%emt 0:04:40]} 24. Be3 {[%emt 0:01:46]} Nxe3 {[%emt 0:00:57]} 25. Qxe3 {[%emt 0:01:00]} Rb8 {[%emt 0:04:11]} 26. Qxc5 {[%emt 0:01:03]} Bxc5 {[%emt 0:00:12]} 27. b3 {[%emt 0:00:22]} Ke7 {[%emt 0:02:10]} 28. c4 {[%emt 0:03:00]} a5 {[%emt 0:00:56]} 29. Rab1 {[%emt 0:02:10]} Rcb7 {[%emt 0:02:10]} 30. Ne1 {[%emt 0:04:40]} a4 {[%emt 0:01:04]} 31. Rd3 {[%emt 0:00:17]} Ra7 {[%emt 0:01:39]} 32. Kf1 {[%emt 0:02:19]} axb3 {[%emt 0:00:34]} 33. axb3 {[%emt 0:01:22]} Ra2 {[%emt 0:00:21]} 34. Rf3 {[%emt 0:00:39]} e5 {[%emt 0:05:30]} 35. g4 {[%emt 0:01:30]} Bd6 {[%emt 0:04:08]} 36. Nd3 {[%emt 0:03:53]} Ra3 {[%emt 0:02:48]} 37. Nc1 {[%emt 0:02:56]} Rba8 {[%emt 0:01:06]} 38. Rc3 {[%emt 0:02:10]} Bb4 {[%emt 0:02:09]} 39. Rc2 {[%emt 0:00:53]} Ra1 {[%emt 0:01:09]} 40. Rxa1 {[%emt 0:00:27]} Rxa1 {[%emt 0:00:12]} 41. Ke2 {[%emt 0:30:17]} Ba3 {[%emt 0:34:02]} 42. Ra2 Rxa2+ {[%emt 0:01:44]} 43. Nxa2 {[%emt 0:00:07]} Bc5 {[%emt 0:01:01]} 44. Nc3 {[%emt 0:01:18]} g6 {[%emt 0:01:30]} 45. b4 {[%emt 0:01:58]} Bd4 {[%emt 0:01:45]} 46. Nd5+ {[%emt 0:00:24]} Ke6 {[%emt 0:00:21]} 47. f3 {[%emt 0:01:03]} f5 {[%emt 0:02:25]} 48. Kd3 {[%emt 0:00:44]} fxg4 {[%emt 0:00:47]} 49. fxg4 {[%emt 0:00:07]} h5 {[%emt 0:01:46]} 50. h3 {[%emt 0:00:13]} hxg4 {[%emt 0:01:18]} 51. hxg4 {[%emt 0:00:07]} Kd6 {[%emt 0:05:28]} 52. Ke4 {[%emt 0:00:26]} Ke6 {[%emt 0:09:18]} 53. c5 {[%emt 0:01:03]} Kd7 {[%emt 0:01:44]} 54. Nf4 {[%emt 0:00:29]} exf4 {[%emt 0:00:00]} 55. Kxf4 {[%emt 0:00:00]} Kc6 {[%emt 0:00:00]} 56. Kg5 {[%emt 0:00:00]} Bc3 {[%emt 0:00:00]} 57. Kxg6 {[%emt 0:00:00]} Bxb4 {[%emt 0:00:00]} 58. Kf7 {[%emt 0:00:00]} Bxc5 {[%emt 0:00:00]} 59. g5 {[%emt 0:00:00]} Bd4 {[%emt 0:00:00]} 60. g6 {[%emt 0:00:00]} Kd7 {[%emt 0:00:00]} 61. g7 {[%emt 0:00:00]} Bxg7 {[%emt 0:00:00]} 62. Kxg7 {[%emt 0:00:00]} 1/2-1/2

[Event "GER-chT Youth Countries 2018"]
[Site "Wurzburg"]
[Date "2018.10.05"]
[Round "4"]
[White "Bardorz, Jana"]
[Black "Abele, Anais"]
[Result "1-0"]
[ECO "B24"]
[WhiteElo "1810"]
[BlackElo "1679"]
[Annotator "NA"]
[PlyCount "107"]
[EventDate "2018.10.03"]
[EventType "team-tourn"]
[EventCountry "GER"]
[SourceTitle "playchess.com"]
[Source "ChessBase"]
[SourceQuality "1"]
[TimeControl "40/5400+30:1800+30"]

1. e4 {[%emt 0:00:00]} c5 {[%emt 0:00:00]} 2. Nc3 {[%emt 0:00:00]} Nc6 {[%emt 0:00:43]} 3. g3 {[%emt 0:00:00]} g6 {[%emt 0:00:55]} 4. Bg2 {[%emt 0:00:19]} Bg7 {[%emt 0:01:07]} 5. d3 {[%emt 0:00:28]} e6 {[%emt 0:01:15]} 6. Be3 {[%emt 0:02:49] LiveBook: 735 Games} d6 {[%emt 0:03:17]} 7. Qd2 {[%emt 0:04:38]} Nge7 $14 {[%emt 0:02:58]} 8. Bh6 {[%emt 0:04:27]} O-O {[%emt 0:03:06]} 9. h4 {[%emt 0:06:14]} f6 {[%emt 0:16:32]} 10. h5 {[%emt 0:05:51]} Bxh6 {[%emt 0:10:16]} 11. Qxh6 {[%emt 0:00:27]} g5 {[%emt 0:00:09]} 12. Nf3 {[%emt 0:16:38]} Kh8 {[%emt 0:07:48]} 13. Nxg5 {[%emt 0:06:09]} fxg5 {[%emt 0:01:11]} 14. Qxg5 {[%emt 0:02:04]} Ng8 {[%emt 0:04:32]} 15. Qe3 {[%emt 0:04:57]} Qf6 {[%emt 0:02:15]} 16. f4 {[%emt 0:03:22]} Nd4 {[%emt 0:04:36]} 17. O-O-O {[%emt 0:02:54]} Rb8 {[%emt 0:04:13]} 18. e5 {[%emt 0:06:19]} dxe5 {[%emt 0:03:32]} 19. Rdf1 {[%emt 0:06:21]} Bd7 {[%emt 0:05:43]} 20. Ne4 {[%emt 0:02:57]} Qe7 {[%emt 0:02:51]} 21. fxe5 {[%emt 0:02:04]} b6 {[%emt 0:03:48]} 22. c3 {[%emt 0:02:21]} Nf5 {[%emt 0:01:06]} 23. Qf3 {[%emt 0:02:27]} Nh4 {[%emt 0:04:46]} 24. Qe2 {[%emt 0:00:51]} Nxg2 {[%emt 0:01:31]} 25. Qxg2 {[%emt 0:00:06]} Bc6 {[%emt 0:01:51]} 26. Rf4 {[%emt 0:02:19]} Rxf4 {[%emt 0:01:38]} 27. gxf4 {[%emt 0:00:08]} Qg7 {[%emt 0:01:14]} 28. Qxg7+ {[%emt 0:01:48]} Kxg7 {[%emt 0:00:11]} 29. Rg1+ {[%emt 0:00:19]} Kh8 {[%emt 0:02:55]} 30. Ng5 {[%emt 0:01:14]} Nh6 {[%emt 0:01:14]} 31. Nxe6 {[%emt 0:01:45]} Bd5 {[%emt 0:01:06]} 32. Ng5 {[%emt 0:04:42]} Rg8 {[%emt 0:01:52]} 33. a3 {[%emt 0:03:04]} Bf7 {[%emt 0:02:16]} 34. Nxf7+ {[%emt 0:02:12]} Nxf7 {[%emt 0:00:12]} 35. Rxg8+ {[%emt 0:00:06]} Kxg8 {[%emt 0:00:15]} 36. Kd2 {[%emt 0:00:41]} Kg7 {[%emt 0:00:47]} 37. Ke3 {[%emt 0:00:32]} Kh6 {[%emt 0:01:24]} 38. Ke4 {[%emt 0:01:21]} Kxh5 {[%emt 0:01:15]} 39. e6 {[%emt 0:01:23]} Nd6+ {[%emt 0:01:03]} 40. Ke5 {[%emt 0:00:38]} Ne8 {[%emt 0:00:41]} 41. f5 {[%emt 0:03:35]} Kg5 {[%emt 0:02:38]} 42. d4 {[%emt 0:01:35]} cxd4 {[%emt 0:11:06]} 43. cxd4 {[%emt 0:00:08]} h5 {[%emt 0:00:51]} 44. d5 {[%emt 0:03:53]} h4 {[%emt 0:04:38]} 45. d6 {[%emt 0:01:56]} Nxd6 {[%emt 0:01:29]} 46. Kxd6 {[%emt 0:00:12]} h3 {[%emt 0:00:41]} 47. e7 {[%emt 0:00:36]} h2 {[%emt 0:00:15]} 48. e8=Q {[%emt 0:00:07]} h1=Q {[%emt 0:00:34]} 49. Qg8+ {[%emt 0:02:18]} Kf4 {[%emt 0:01:38]} 50. f6 {[%emt 0:01:19]} Qd1+ {[%emt 0:01:22]} 51. Qd5 {[%emt 0:00:13]} Qg1 {[%emt 0:01:49]} 52. f7 {[%emt 0:01:23]} Qg7 {[%emt 0:01:31]} 53. Ke7 {[%emt 0:00:52]} Kg4 {[%emt 0:01:08]} 54. Qg2+ {[%emt 0:00:09]} 1-0

[Event "GER-chT Youth Countries 2018"]
[Site "Wurzburg"]
[Date "2018.10.05"]
[Round "4"]
[White "Reitz, Theresa"]
[Black "Dietz, Kristin"]
[Result "0-1"]
[ECO "A34"]
[WhiteElo "1788"]
[BlackElo "1762"]
[Annotator "NA"]
[PlyCount "80"]
[EventDate "2018.10.03"]
[EventType "team-tourn"]
[EventCountry "GER"]
[SourceTitle "playchess.com"]
[Source "ChessBase"]
[SourceQuality "1"]
[TimeControl "40/5400+30:1800+30"]

1. c4 {[%emt 0:00:00]} c5 {[%emt 0:00:00]} 2. Nc3 {[%emt 0:00:00]} Nf6 {[%emt 0:00:00]} 3. g3 {[%emt 0:00:00]} d5 {[%emt 0:00:14]} 4. cxd5 {[%emt 0:00:00]} Nxd5 {[%emt 0:00:06]} 5. Bg2 {[%emt 0:00:07]} Nc7 {[%emt 0:00:17]} 6. Qb3 {[%emt 0:00:20]} Nc6 {[%emt 0:02:04]} 7. Bxc6+ {[%emt 0:00:07]} bxc6 {[%emt 0:00:10]} 8. Nf3 {[%emt 0:01:46]} e6 {[%emt 0:07:53]} 9. Qa4 {[%emt 0:01:01]} Bd7 {[%emt 0:01:32]} 10. d3 {[%emt 0:03:15]} Be7 {[%emt 0:01:37]} 11. O-O {[%emt 0:01:49]} O-O {[%emt 0:00:14]} 12. Ne4 {[%emt 0:05:11]} Nd5 {[%emt 0:02:59]} 13. b3 {[%emt 0:06:03]} f5 {[%emt 0:03:32]} 14. Neg5 {[%emt 0:15:27]} Bf6 {[%emt 0:01:51]} 15. d4 {[%emt 0:00:46]} cxd4 {[%emt 0:02:26]} 16. Bd2 {[%emt 0:07:42]} h6 {[%emt 0:02:03]} 17. Nh3 {[%emt 0:07:00]} g5 {[%emt 0:02:15]} 18. Rac1 {[%emt 0:08:03]} e5 {[%emt 0:01:51]} 19. Qc4 {[%emt 0:08:28]} Kg7 {[%emt 0:01:35]} 20. Qc2 {[%emt 0:11:54]} g4 {[%emt 0:02:32]} 21. Nxd4 {[%emt 0:01:52]} exd4 {[%emt 0:00:31]} 22. Nf4 {[%emt 0:00:15]} Nxf4 {[%emt 0:00:51]} 23. Bxf4 {[%emt 0:00:06]} Qe7 {[%emt 0:04:12]} 24. Qd2 {[%emt 0:03:41]} Rh8 {[%emt 0:00:15]} 25. Rc4 {[%emt 0:00:23]} c5 {[%emt 0:01:30]} 26. Rfc1 {[%emt 0:00:28]} Rac8 {[%emt 0:00:52]} 27. Qa5 {[%emt 0:00:35]} Be6 {[%emt 0:07:15]} 28. Rxc5 {[%emt 0:00:09]} Rxc5 {[%emt 0:00:08]} 29. Rxc5 {[%emt 0:00:10]} Rc8 {[%emt 0:00:11]} 30. Rxf5 {[%emt 0:06:51]} Bxf5 {[%emt 0:01:23]} 31. Qxf5 {[%emt 0:00:05]} Rc5 {[%emt 0:07:11]} 32. Qxg4+ {[%emt 0:00:08]} Kh7 {[%emt 0:00:37]} 33. b4 {[%emt 0:04:13]} Rd5 {[%emt 0:02:48]} 34. Qf3 {[%emt 0:01:16]} Qe6 {[%emt 0:04:24]} 35. Qd3+ {[%emt 0:00:56]} Qf5 {[%emt 0:00:33]} 36. Qa6 {[%emt 0:00:57]} Rd7 {[%emt 0:00:11]} 37. b5 {[%emt 0:01:25]} Bg7 {[%emt 0:00:44]} 38. Qc6 {[%emt 0:00:51]} Re7 {[%emt 0:01:19]} 39. Qc4 {[%emt 0:00:53]} Qb1+ {[%emt 0:00:53]} 40. Bc1 {[%emt 0:01:23]} d3 {[%emt 0:01:09]} 0-1